{"text_format":"3","workbook":"xlsx","n_sheets":2,"sheets":["Angebot","Bestellschein"],"not_rendered":{"defined_names":2},"read":"whole","date_system":"1900"}

{"sheet":"Angebot","index":0,"n_rows":28,"n_cols":7,"rows_kept":28}
[]
[null,"Angebot",null,"Nr.",1,{"$f":"TODAY()","v":"2021-01-18"},"Tipps zum Elektro-Grillen Anschluss 5-polig 400 V:"]
[null," Bitte im grünen Feld die persönlichen Daten eingeben"]
[null,"Datum der Anfrage",null,null,{"$f":"F2","v":"2021-01-18"},null,"Vorbereitung:"]
[null,"Fest/Organisation",null,null,"Fest",null,"Bratgut mittig aufspießen und gut verankern"]
[null,"Termin/Uhrzeit",null,null,"Termin","Uhrzeit","Tropftasse mit ca. 3 l Wasser befüllen"]
[null,"Anrede",null,null,"Frau oder Herr"]
[null,"Nachname/Vorname",null,null,"Muster Max",null,"Bratzeit:"]
[null,"Straße/Nr",null,null,"Wohnadresse",null,"nach Stärke des Grillgutes berechnen"]
[null,"Plz/Ort",{"$nulls":4},"(ca. 4-6 Std.)"]
[null,"Ansprechpartner",null,null,{"$f":"E8","v":"Muster Max"}]
[null,"Lieferadresse",null,null,"Lieferadresse",null,"Brattemperatur:"]
[{"$nulls":6},"max. 170 Grad"]
[null,"Telefon",{"$nulls":4},"bei 75 - 80 °C Kerntemperatur ist der Braten fertig"]
[null,"e-mail"]
[{"$nulls":3},"Preis/Portion netto","Portionen","Gesamt","Warmhalten:"]
[null,"Bitte im grünen Feld Portionen/Einheiten eingeben",{"$nulls":4},"bei max. 80 °C bis zu 3 Std. möglich"]
[null,"Spanferkelrollbraten gewürzt","30 dag/Port.",{"v":4.2,"d":"4.20"},1,{"$f":"E18*D18","v":{"v":4.2,"d":"4.20"}}]
[null,"Krautsalat warm  ","15 dag/Port.",{"v":1.3,"d":"1.30"},1,{"$f":"E19*D19","v":{"v":1.3,"d":"1.30"}},"Portionieren:"]
[null,"Serviettenknödel  ","15 dag/Port.",{"v":1.3,"d":"1.30"},1,{"$f":"E20*D20","v":{"v":1.3,"d":"1.30"}},"nach Ende der Bratzeit den Braten  "]
[null,null,"          Preis/Einheit netto",null,"Einheit",null,"10 Minuten rasten lassen,  anschließend portionieren!"]
[null,"Zustellung bzw. Abholung pro km",null,{"v":1,"d":"1.00"},1,{"$f":"E22*D22","v":{"v":1,"d":"1.00"}}]
[null,"Grillerreinigung pro Griller",null,{"v":25,"d":"25.00"},1,{"$f":"E23*D23","v":{"v":25,"d":"25.00"}},"      Guten Appetit wünscht Fam. Jungwirth"]
[null,"Teller-Besteck-Reinigung pro Gedeck",null,{"v":1.5,"d":"1.50"},1,{"$f":"E24*D24","v":{"v":1.5,"d":"1.50"}},"           Tel.07240/8361 oder 0676/9057413"]
[null,"Nettobetrag",{"$nulls":3},{"$f":"SUM(F18:F24)","v":{"v":34.3,"d":"34.30"}}]
[null,"MWSt ",null,{"v":0.13,"d":"13%"},null,{"$f":"SUM(F18:F24)*D26","v":{"v":4.459,"d":"4.46"}},"jungwirth@spanferkel-grillservice.at"]
[null,"Bruttobetrag",{"$nulls":3},{"$f":"SUM(F25:F26)","v":{"v":38.759,"d":"38.76"}},"www.spanferkel-grillservice.at"]
[null,"Kosten/Portion inkl.",{"$nulls":3},{"$f":"IF(F27,F27/E18,\"0,00\")","v":{"v":38.759,"d":"38.76"}}]

{"sheet":"Bestellschein","index":1,"n_rows":28,"n_cols":7,"rows_kept":28}
[]
[null," Bestellschein",null,"Nr.",{"$f":"Angebot!E2","v":1},{"$f":"TODAY()","v":"2021-01-18"},"Tipps zum Elektro-Grillen Anschluss 5-polig 400 V:"]
[null," Bitte im grünen Feld die persönlichen Daten eingeben"]
[null,"Datum der Anfrage",null,null,{"$f":"Angebot!E4","v":"2021-01-18"},null,"Vorbereitung:"]
[null,"Fest/Organisation",null,null,{"$f":"Angebot!E5","v":"Fest"},null,"Bratgut mittig aufspießen und gut verankern"]
[null,"Termin/Uhrzeit",null,null,{"$f":"Angebot!E6","v":"Termin"},null,"Tropftasse mit ca. 3 l Wasser befüllen"]
[null,"Anrede",null,null,{"$f":"Angebot!E7","v":"Frau oder Herr"}]
[null,"Nachname/Vorname",null,null,{"$f":"Angebot!E8","v":"Muster Max"},null,"Bratzeit:"]
[null,"Straße/Nr",null,null,{"$f":"Angebot!E9","v":"Wohnadresse"},null,"nach Stärke des Grillgutes berechnen"]
[null,"Plz/Ort",null,null,{"$f":"Angebot!E10","v":0},null,"(ca. 4-6 Std.)"]
[null,"Ansprechpartner",null,null,{"$f":"Angebot!E11","v":"Muster Max"}]
[null,"Lieferadresse",null,null,{"$f":"Angebot!E12","v":"Lieferadresse"},null,"Brattemperatur:"]
[{"$nulls":4},{"$f":"Angebot!E13","v":0},null,"max. 170 Grad"]
[null,"Telefon",null,null,{"$f":"Angebot!E14","v":0},null,"bei 75 - 80 °C Kerntemperatur ist der Braten fertig"]
[null,"e-mail",null,null,{"$f":"Angebot!E15","v":0}]
[{"$nulls":3},"Preis/Portion netto","Portionen","Gesamt","Warmhalten:"]
[null,{"$f":"Angebot!B17","v":"Bitte im grünen Feld Portionen/Einheiten eingeben"},null,null,{"$f":"E18","v":1},null,"bei max. 80 °C bis zu 3 Std. möglich"]
[null,{"$f":"Angebot!B18","v":"Spanferkelrollbraten gewürzt"},{"$f":"Angebot!C18","v":"30 dag/Port."},{"$f":"Angebot!D18","v":{"v":4.2,"d":"4.20"}},{"$f":"Angebot!E18","v":1},{"$f":"Angebot!F18","v":{"v":4.2,"d":"4.20"}}]
[null,{"$f":"Angebot!B19","v":"Krautsalat warm  "},{"$f":"Angebot!C19","v":"15 dag/Port."},{"$f":"Angebot!D19","v":{"v":1.3,"d":"1.30"}},{"$f":"Angebot!E19","v":1},{"$f":"Angebot!F19","v":{"v":1.3,"d":"1.30"}},"Portionieren:"]
[null,{"$f":"Angebot!B20","v":"Serviettenknödel  "},{"$f":"Angebot!C20","v":"15 dag/Port."},{"$f":"Angebot!D20","v":{"v":1.3,"d":"1.30"}},{"$f":"Angebot!E20","v":1},{"$f":"Angebot!F20","v":{"v":1.3,"d":"1.30"}},"nach Ende der Bratzeit den Braten  "]
[null,null,"          Preis/Einheit netto",null,"Einheit",null,"10 Minuten rasten lassen,  anschließend portionieren!"]
[null,{"$f":"Angebot!#REF!","v":{"$error":"#REF!"}},null,{"$f":"Angebot!D22","v":{"v":1,"d":"1.00"}},{"$f":"Angebot!E22","v":1},{"$f":"Angebot!F22","v":{"v":1,"d":"1.00"}}]
[null,{"$f":"Angebot!B24","v":"Teller-Besteck-Reinigung pro Gedeck"},null,{"$f":"Angebot!D23","v":{"v":25,"d":"25.00"}},{"$f":"Angebot!E23","v":1},{"$f":"Angebot!F23","v":{"v":25,"d":"25.00"}},"      Guten Appetit wünscht Fam. Jungwirth"]
[null,{"$f":"Angebot!B22","v":"Zustellung bzw. Abholung pro km"},null,{"$f":"Angebot!D24","v":{"v":1.5,"d":"1.50"}},{"$f":"Angebot!E24","v":1},{"$f":"Angebot!F24","v":{"v":1.5,"d":"1.50"}},"           Tel.07240/8361 oder 0676/9057413"]
[null,"Nettobetrag",{"$nulls":3},{"$f":"SUM(F18:F24)","v":{"v":34.3,"d":"34.30"}}]
[null,"MWSt ",null,{"$f":"Angebot!D26","v":{"v":0.13,"d":"13%"}},null,{"$f":"SUM(F22:F24)*D26","v":{"v":3.575,"d":"3.58"}},"jungwirth@spanferkel-grillservice.at"]
[null,"Bruttobetrag",{"$nulls":3},{"$f":"SUM(F25:F26)","v":{"v":37.875,"d":"37.88"}},"www.spanferkel-grillservice.at"]
[null,"Kosten/Portion inkl.",{"$nulls":3},{"$f":"F27/E18","v":{"v":37.875,"d":"37.88"}}]